[Event "GrandPrix_29.05"]
[Site "Chess.com"]
[Date "2020.05.29"]
[Round "1"]
[White "Lavrov_Maxim"]
[Black "Antipov_Mikhail_Al"]
[Result "1-0"]
[WhiteElo "2320"]
[BlackElo "2283"]
[TimeControl "600+2"]
[EndTime "9:25:44 PDT"]
[Termination "Lavrov_Maxim won by resignation"]

1. e4 {[%clk 0:09:56.9]} 1... e5 {[%clk 0:10:00.4]} 2. Nf3 {[%clk 0:09:57]} 2...
Nc6 {[%clk 0:10:01.1]} 3. Bb5 {[%clk 0:09:56.2]} 3... Nf6 {[%clk 0:09:56]} 4. d3
{[%clk 0:09:48.2]} 4... Ne7 {[%clk 0:09:56.2]} 5. O-O {[%clk 0:09:45.8]} 5... c6
{[%clk 0:09:56.4]} 6. Bc4 {[%clk 0:09:45.9]} 6... Ng6 {[%clk 0:09:53.9]} 7. Bb3
{[%clk 0:09:30]} 7... Be7 {[%clk 0:09:50]} 8. Re1 {[%clk 0:09:18.4]} 8... O-O
{[%clk 0:09:50.5]} 9. Nbd2 {[%clk 0:09:09.4]} 9... Qc7 {[%clk 0:09:50.2]} 10. h3
{[%clk 0:08:59.7]} 10... d5 {[%clk 0:09:50.7]} 11. Nf1 {[%clk 0:08:44.1]} 11...
h6 {[%clk 0:09:26.9]} 12. Ng3 {[%clk 0:08:40.8]} 12... Bd6 {[%clk 0:09:22.1]}
13. c3 {[%clk 0:07:56.8]} 13... Be6 {[%clk 0:09:16.6]} 14. Qe2 {[%clk
0:07:37.9]} 14... Rfe8 {[%clk 0:09:13.8]} 15. Nf5 {[%clk 0:07:13.7]} 15... Bf8
{[%clk 0:08:35.6]} 16. N3h4 {[%clk 0:06:53.7]} 16... Nxh4 {[%clk 0:08:02.5]} 17.
Nxh4 {[%clk 0:06:52.3]} 17... Bd6 {[%clk 0:08:04]} 18. Qf3 {[%clk 0:06:47]}
18... Qd8 {[%clk 0:07:25.4]} 19. Nf5 {[%clk 0:06:43.2]} 19... Bf8 {[%clk
0:07:07.2]} 20. exd5 {[%clk 0:06:00.9]} 20... Bxf5 {[%clk 0:06:42.7]} 21. Qxf5
{[%clk 0:05:57.1]} 21... g6 {[%clk 0:06:44.3]} 22. Qf3 {[%clk 0:05:42.1]} 22...
cxd5 {[%clk 0:06:45.5]} 23. Be3 {[%clk 0:05:31.7]} 23... Bg7 {[%clk 0:06:32.4]}
24. Rad1 {[%clk 0:05:22.5]} 24... Qd7 {[%clk 0:06:24.6]} 25. Bxh6 {[%clk
0:04:45.1]} 25... Bxh6 {[%clk 0:06:26.5]} 26. Qxf6 {[%clk 0:04:44.5]} 26... Bg7
{[%clk 0:06:28.1]} 27. Qf3 {[%clk 0:04:42.6]} 27... Rad8 {[%clk 0:06:29]} 28. h4
{[%clk 0:04:37.7]} 28... a5 {[%clk 0:06:23.6]} 29. a4 {[%clk 0:04:29.2]} 29...
b5 {[%clk 0:06:23.5]} 30. Ra1 {[%clk 0:04:22.5]} 30... Re6 {[%clk 0:06:23.7]}
31. h5 {[%clk 0:03:40.9]} 31... gxh5 {[%clk 0:06:06.6]} 32. Qxh5 {[%clk
0:03:37.3]} 32... bxa4 {[%clk 0:06:04.3]} 33. Bxa4 {[%clk 0:03:34.3]} 33... Qd6
{[%clk 0:05:41.5]} 34. Bc2 {[%clk 0:03:29.2]} 34... Qb6 {[%clk 0:05:31.5]} 35.
b3 {[%clk 0:03:04.8]} 35... Rh6 {[%clk 0:05:05.3]} 36. Qe2 {[%clk 0:02:58.1]}
36... f5 {[%clk 0:04:51.1]} 37. Ra4 {[%clk 0:02:28.4]} 37... e4 {[%clk
0:03:55.5]} 38. c4 {[%clk 0:02:08.2]} 38... Bc3 {[%clk 0:02:10.1]} 39. Rd1
{[%clk 0:02:04.5]} 39... Kg7 {[%clk 0:01:57.5]} 40. Qe3 {[%clk 0:00:40.2]} 40...
Bd4 {[%clk 0:01:24.1]} 41. c5 {[%clk 0:00:27.5]} 41... Bxc5 {[%clk 0:01:17.4]}
42. Qg5+ {[%clk 0:00:23.4]} 42... Rg6 {[%clk 0:01:16.1]} 43. Qxf5 {[%clk
0:00:23.1]} 43... Bd4 {[%clk 0:00:05.6]} 44. dxe4 {[%clk 0:00:17.3]} 44... Rf8
{[%clk 0:00:06.2]} 45. Raxd4 {[%clk 0:00:15.2]} 45... Rxf5 {[%clk 0:00:06.8]}
46. exf5 {[%clk 0:00:16.3]} 46... Rc6 {[%clk 0:00:08.5]} 47. Rg4+ {[%clk
0:00:14.1]} 47... Kf7 {[%clk 0:00:07.8]} 48. Rd2 {[%clk 0:00:10.5]} 48... Qc7
{[%clk 0:00:05.9]} 49. Bd1 {[%clk 0:00:09.1]} 49... Qe5 {[%clk 0:00:06.9]} 50.
Rgd4 {[%clk 0:00:08.6]} 50... Qe1+ {[%clk 0:00:07.9]} 51. Kh2 {[%clk 0:00:09.3]}
51... Rh6+ {[%clk 0:00:07.5]} 52. Kg3 {[%clk 0:00:10.1]} 52... Qe5+ {[%clk
0:00:07.8]} 53. f4 {[%clk 0:00:08.2]} 53... Qe1+ {[%clk 0:00:04.4]} 54. Kf3
{[%clk 0:00:09.2]} 54... Qf1+ {[%clk 0:00:03.5]} 55. Kg3 {[%clk 0:00:09.5]}
55... Qe1+ {[%clk 0:00:03.7]} 56. Kf3 {[%clk 0:00:10.1]} 56... Rh1 {[%clk
0:00:03.4]} 57. Kg4 {[%clk 0:00:07.8]} 57... Qh4+ {[%clk 0:00:03.5]} 58. Kf3
{[%clk 0:00:08.8]} 58... Rf1+ {[%clk 0:00:05]} 59. Ke2 {[%clk 0:00:09]} 59...
Qe1+ {[%clk 0:00:06.2]} 60. Kd3 {[%clk 0:00:09.7]} 60... Qg3+ {[%clk 0:00:04.3]}
61. Kc2 {[%clk 0:00:10.2]} 61... Rf2 {[%clk 0:00:04.6]} 62. Rxd5 {[%clk
0:00:09.3]} 62... Qxg2 {[%clk 0:00:03.1]} 63. Rxf2 {[%clk 0:00:09.2]} 63... Qxd5
{[%clk 0:00:03.3]} 64. Rd2 {[%clk 0:00:09]} 64... Qxf5+ {[%clk 0:00:04.4]} 65.
Rd3 {[%clk 0:00:10]} 65... Qxf4 {[%clk 0:00:04.5]} 66. Rf3 {[%clk 0:00:10]} 1-0

[Event "GrandPrix_29.05"]
[Site "Chess.com"]
[Date "2020.05.29"]
[Round "1"]
[White "Y0ung_Capablanca"]
[Black "khekhm"]
[Result "1-0"]
[WhiteElo "2583"]
[BlackElo "2455"]
[TimeControl "600+2"]
[EndTime "9:25:47 PDT"]
[Termination "Y0ung_Capablanca won on time"]

1. d4 {[%clk 0:09:58.3]} 1... Nf6 {[%clk 0:09:56.3]} 2. c4 {[%clk 0:09:58.6]}
2... g6 {[%clk 0:09:50.2]} 3. Nf3 {[%clk 0:09:50.1]} 3... Bg7 {[%clk 0:09:49.8]}
4. g3 {[%clk 0:09:50.6]} 4... O-O {[%clk 0:09:50]} 5. Bg2 {[%clk 0:09:52.1]}
5... d5 {[%clk 0:09:50.5]} 6. O-O {[%clk 0:09:47.1]} 6... Nc6 {[%clk 0:09:43.6]}
7. cxd5 {[%clk 0:09:06.3]} 7... Nxd5 {[%clk 0:09:43.8]} 8. Nc3 {[%clk
0:09:07.2]} 8... Nb6 {[%clk 0:09:44.3]} 9. d5 {[%clk 0:08:26.9]} 9... Na5 {[%clk
0:09:14.2]} 10. Qc2 {[%clk 0:08:27.9]} 10... Bg4 {[%clk 0:09:06.6]} 11. Rd1
{[%clk 0:08:16.7]} 11... Qd7 {[%clk 0:08:55.4]} 12. Bf4 {[%clk 0:07:27.8]} 12...
Nac4 {[%clk 0:08:35.6]} 13. Rac1 {[%clk 0:06:51.2]} 13... Rac8 {[%clk
0:06:11.9]} 14. b3 {[%clk 0:06:49]} 14... Bxf3 {[%clk 0:05:43.5]} 15. Bxf3
{[%clk 0:06:46.6]} 15... Ne5 {[%clk 0:05:44.6]} 16. Bg2 {[%clk 0:06:41.9]} 16...
Rfd8 {[%clk 0:05:09.6]} 17. Ne4 {[%clk 0:06:21.2]} 17... Qf5 {[%clk 0:03:35.9]}
18. Nc5 {[%clk 0:05:43.2]} 18... Qxc2 {[%clk 0:03:35.1]} 19. Rxc2 {[%clk
0:05:44.3]} 19... c6 {[%clk 0:03:12.5]} 20. Nxb7 {[%clk 0:04:15.4]} 20... cxd5
{[%clk 0:03:00.8]} 21. Rxc8 {[%clk 0:04:10.7]} 21... Rxc8 {[%clk 0:03:02.2]} 22.
Bxd5 {[%clk 0:04:08.4]} 22... Bf6 {[%clk 0:01:50.6]} 23. a4 {[%clk 0:03:39.3]}
23... Rc2 {[%clk 0:01:13.3]} 24. Bxe5 {[%clk 0:01:46.6]} 24... Bxe5 {[%clk
0:01:13.9]} 25. Bf3 {[%clk 0:01:48.5]} 25... Kg7 {[%clk 0:00:58.9]} 26. Na5
{[%clk 0:01:35.3]} 26... Bd6 {[%clk 0:00:33]} 27. Nc6 {[%clk 0:01:32.5]} 27...
a6 {[%clk 0:00:34]} 28. a5 {[%clk 0:01:00.9]} 28... Nd7 {[%clk 0:00:34.2]} 29.
Nxe7 {[%clk 0:00:51.8]} 29... Bxe7 {[%clk 0:00:27.9]} 30. Rxd7 {[%clk
0:00:53.2]} 30... Bb4 {[%clk 0:00:25.2]} 31. Bd5 {[%clk 0:00:42.8]} 31... Rxe2
{[%clk 0:00:25.7]} 32. Rxf7+ {[%clk 0:00:42.8]} 32... Kh6 {[%clk 0:00:23.1]} 33.
Rf6 {[%clk 0:00:37.4]} 33... Bxa5 {[%clk 0:00:14.2]} 34. Bc4 {[%clk 0:00:38]}
34... Rd2 {[%clk 0:00:10.4]} 35. Rxa6 {[%clk 0:00:38.5]} 35... Bb4 {[%clk
0:00:11.9]} 36. Rc6 {[%clk 0:00:33.8]} 36... Bc3 {[%clk 0:00:10.3]} 37. Rc7
{[%clk 0:00:31.2]} 37... Bd4 {[%clk 0:00:11.4]} 38. Rf7 {[%clk 0:00:32.8]} 38...
g5 {[%clk 0:00:07.7]} 39. Kf1 {[%clk 0:00:22.3]} 39... Kg6 {[%clk 0:00:08.9]}
40. Ke1 {[%clk 0:00:20.7]} 40... Rb2 {[%clk 0:00:10.1]} 41. Rf3 {[%clk
0:00:21.2]} 41... h5 {[%clk 0:00:10.2]} 42. h3 {[%clk 0:00:21.7]} 42... h4
{[%clk 0:00:10.5]} 43. gxh4 {[%clk 0:00:21.4]} 43... gxh4 {[%clk 0:00:12.4]} 44.
Rf4 {[%clk 0:00:21.6]} 44... Bc3+ {[%clk 0:00:12.9]} 45. Kf1 {[%clk 0:00:22.5]}
45... Bf6 {[%clk 0:00:13.8]} 46. Bd3+ {[%clk 0:00:22.2]} 46... Kf7 {[%clk
0:00:12.6]} 47. Kg2 {[%clk 0:00:22.5]} 47... Ke6 {[%clk 0:00:13.9]} 48. Bc4+
{[%clk 0:00:23.8]} 48... Ke5 {[%clk 0:00:14.9]} 49. Rf3 {[%clk 0:00:24.7]} 49...
Bg5 {[%clk 0:00:10.6]} 50. Rf8 {[%clk 0:00:22.7]} 50... Rc2 {[%clk 0:00:10.9]}
51. Kf3 {[%clk 0:00:21.4]} 51... Bf6 {[%clk 0:00:09.1]} 52. Re8+ {[%clk
0:00:22.1]} 52... Kd4 {[%clk 0:00:05.7]} 53. Re6 {[%clk 0:00:21.6]} 53... Be5
{[%clk 0:00:03.1]} 54. Re8 {[%clk 0:00:19.5]} 54... Rc3+ {[%clk 0:00:03.6]} 55.
Kg4 {[%clk 0:00:20.3]} 55... Rc2 {[%clk 0:00:04.8]} 56. f4 {[%clk 0:00:19.4]}
56... Bd6 {[%clk 0:00:06.2]} 57. Kf5 {[%clk 0:00:17.1]} 57... Rf2 {[%clk
0:00:06.6]} 58. Re4+ {[%clk 0:00:18.3]} 58... Kc5 {[%clk 0:00:07]} 59. Kg4
{[%clk 0:00:18.5]} 59... Bc7 {[%clk 0:00:06.7]} 60. f5 {[%clk 0:00:16.4]} 60...
Bg3 {[%clk 0:00:07.2]} 61. Be6 {[%clk 0:00:17.3]} 61... Kc6 {[%clk 0:00:07.8]}
62. Kg5 {[%clk 0:00:18.3]} 62... Kd6 {[%clk 0:00:08]} 63. Kf6 {[%clk 0:00:14.4]}
63... Rf3 {[%clk 0:00:07.9]} 64. Rd4+ {[%clk 0:00:15.1]} 64... Kc5 {[%clk
0:00:08.1]} 65. Re4 {[%clk 0:00:16]} 65... Bf2 {[%clk 0:00:06]} 66. Ke7 {[%clk
0:00:15.5]} 66... Rxh3 {[%clk 0:00:06]} 67. f6 {[%clk 0:00:17]} 67... Kb6 {[%clk
0:00:03.5]} 68. Bxh3 {[%clk 0:00:17.5]} 1-0

[Event "GrandPrix_29.05"]
[Site "Chess.com"]
[Date "2020.05.29"]
[Round "1"]
[White "Didici"]
[Black "Flawless_Fighter"]
[Result "1/2-1/2"]
[WhiteElo "2308"]
[BlackElo "2129"]
[TimeControl "600+2"]
[EndTime "9:25:49 PDT"]
[Termination "Game drawn - insufficient material"]

1. d4 {[%clk 0:10:00.5]} 1... Nf6 {[%clk 0:09:59.6]} 2. c4 {[%clk 0:10:00.9]}
2... e6 {[%clk 0:10:00]} 3. Nc3 {[%clk 0:10:00.2]} 3... Bb4 {[%clk 0:09:56.9]}
4. e3 {[%clk 0:09:59.3]} 4... O-O {[%clk 0:09:56.2]} 5. Bd3 {[%clk 0:10:00]}
5... d5 {[%clk 0:09:57.1]} 6. Nf3 {[%clk 0:10:00.6]} 6... dxc4 {[%clk
0:09:55.6]} 7. Bxc4 {[%clk 0:10:02.5]} 7... c5 {[%clk 0:09:57]} 8. O-O {[%clk
0:09:54.9]} 8... cxd4 {[%clk 0:09:54.6]} 9. exd4 {[%clk 0:09:56.8]} 9... b6
{[%clk 0:09:53.3]} 10. Bg5 {[%clk 0:09:56.9]} 10... Bb7 {[%clk 0:09:50.8]} 11.
Qe2 {[%clk 0:09:56.1]} 11... Bxc3 {[%clk 0:09:18.4]} 12. bxc3 {[%clk 0:09:55.5]}
12... Nbd7 {[%clk 0:09:19.8]} 13. Rac1 {[%clk 0:09:20.1]} 13... Qc7 {[%clk
0:08:56.5]} 14. Bd3 {[%clk 0:09:18.2]} 14... Ng4 {[%clk 0:08:43.8]} 15. Be4
{[%clk 0:08:34]} 15... Bxe4 {[%clk 0:08:20.4]} 16. Qxe4 {[%clk 0:08:35.9]} 16...
Ngf6 {[%clk 0:08:22]} 17. Qe2 {[%clk 0:08:20]} 17... h6 {[%clk 0:08:19]} 18. Bh4
{[%clk 0:07:01.2]} 18... Rac8 {[%clk 0:08:18.8]} 19. c4 {[%clk 0:06:55.8]} 19...
Qb7 {[%clk 0:07:49.3]} 20. Rfe1 {[%clk 0:06:11.4]} 20... Qa6 {[%clk 0:07:44.9]}
21. Ne5 {[%clk 0:05:55.6]} 21... Rfe8 {[%clk 0:06:59.5]} 22. Rc3 {[%clk
0:05:11.4]} 22... Qa5 {[%clk 0:05:52.5]} 23. Rg3 {[%clk 0:04:45.2]} 23... Nxe5
{[%clk 0:05:01.3]} 24. dxe5 {[%clk 0:03:58.7]} 24... Nd7 {[%clk 0:04:54.4]} 25.
f4 {[%clk 0:02:25.8]} 25... Nf8 {[%clk 0:03:43]} 26. Bf6 {[%clk 0:02:26.3]}
26... Ng6 {[%clk 0:03:41.4]} 27. h4 {[%clk 0:02:24.1]} 27... h5 {[%clk
0:02:52.3]} 28. Rf1 {[%clk 0:01:48]} 28... gxf6 {[%clk 0:02:09.8]} 29. Qxh5
{[%clk 0:01:48.2]} 29... Qc5+ {[%clk 0:01:49.3]} 30. Kh2 {[%clk 0:00:41.8]}
30... Kg7 {[%clk 0:01:43.6]} 31. Qg4 {[%clk 0:00:37.4]} 31... Rh8 {[%clk
0:01:03.3]} 32. f5 {[%clk 0:00:24.8]} 32... exf5 {[%clk 0:00:45.7]} 33. Rxf5
{[%clk 0:00:25.4]} 33... Kf8 {[%clk 0:00:13.3]} 34. h5 {[%clk 0:00:17.2]} 34...
Nxe5 {[%clk 0:00:13.8]} 35. Qg7+ {[%clk 0:00:17.4]} 35... Ke7 {[%clk 0:00:13.8]}
36. Qxf6+ {[%clk 0:00:17.5]} 36... Kd7 {[%clk 0:00:13]} 37. Rxe5 {[%clk
0:00:14.3]} 37... Rxh5+ {[%clk 0:00:13.5]} 38. Rxh5 {[%clk 0:00:15]} 38... Qxh5+
{[%clk 0:00:15.4]} 39. Rh3 {[%clk 0:00:16.4]} 39... Qg6 {[%clk 0:00:11.1]} 40.
Rf3 {[%clk 0:00:04.2]} 40... Qxf6 {[%clk 0:00:11.4]} 41. Rxf6 {[%clk 0:00:06.1]}
41... Ke7 {[%clk 0:00:13]} 42. Rf4 {[%clk 0:00:06.5]} 42... Rc5 {[%clk
0:00:14.6]} 43. Kg3 {[%clk 0:00:07.4]} 43... Ra5 {[%clk 0:00:15.9]} 44. Rf2
{[%clk 0:00:08.5]} 44... Ra3+ {[%clk 0:00:13.9]} 45. Kf4 {[%clk 0:00:09.2]}
45... Ra4 {[%clk 0:00:15.5]} 46. Rc2 {[%clk 0:00:10.3]} 46... b5 {[%clk
0:00:17.1]} 47. Ke5 {[%clk 0:00:10.8]} 47... bxc4 {[%clk 0:00:14.1]} 48. g4
{[%clk 0:00:07.9]} 48... f6+ {[%clk 0:00:08.4]} 49. Kd5 {[%clk 0:00:05.8]} 49...
Kd7 {[%clk 0:00:08.9]} 50. Kc5 {[%clk 0:00:04.8]} 50... c3 {[%clk 0:00:05.9]}
51. Rxc3 {[%clk 0:00:04.4]} 51... Rxg4 {[%clk 0:00:07.3]} 52. Ra3 {[%clk
0:00:05.1]} 52... Ke6 {[%clk 0:00:06.3]} 53. Rxa7 {[%clk 0:00:05.4]} 53... f5
{[%clk 0:00:07.6]} 54. a4 {[%clk 0:00:06.1]} 54... Rg1 {[%clk 0:00:07.8]} 55. a5
{[%clk 0:00:06.6]} 55... Rc1+ {[%clk 0:00:09.4]} 56. Kb5 {[%clk 0:00:05.5]}
56... Rb1+ {[%clk 0:00:10.2]} 57. Kc5 {[%clk 0:00:06.3]} 57... Rc1+ {[%clk
0:00:11.6]} 58. Kb4 {[%clk 0:00:06.9]} 58... Rb1+ {[%clk 0:00:11.2]} 59. Kc4
{[%clk 0:00:07.9]} 59... Rc1+ {[%clk 0:00:12.4]} 60. Kd3 {[%clk 0:00:08.2]}
60... Rd1+ {[%clk 0:00:12.9]} 61. Ke3 {[%clk 0:00:08.7]} 61... Re1+ {[%clk
0:00:12.8]} 62. Kf2 {[%clk 0:00:09.3]} 62... Ra1 {[%clk 0:00:13.7]} 63. Ra8
{[%clk 0:00:09.7]} 63... Kd7 {[%clk 0:00:11.5]} 64. a6 {[%clk 0:00:08.6]} 64...
Kc7 {[%clk 0:00:12.3]} 65. a7 {[%clk 0:00:07.1]} 65... Kb7 {[%clk 0:00:13.1]}
66. Rf8 {[%clk 0:00:07.6]} 66... Rxa7 {[%clk 0:00:13.7]} 67. Rxf5 {[%clk
0:00:07.5]} 67... Ra6 {[%clk 0:00:14.7]} 68. Rf7+ {[%clk 0:00:07.9]} 68... Kb6
{[%clk 0:00:16]} 69. Rf6+ {[%clk 0:00:08.7]} 69... Kb7 {[%clk 0:00:17.6]} 70.
Rxa6 {[%clk 0:00:10.6]} 70... Kxa6 {[%clk 0:00:19.5]} 1/2-1/2

[Event "GrandPrix_29.05"]
[Site "Chess.com"]
[Date "2020.05.29"]
[Round "1"]
[White "Baron_von_Koenig"]
[Black "TheNextLevelFan"]
[Result "0-1"]
[WhiteElo "2093"]
[BlackElo "2307"]
[TimeControl "600+2"]
[EndTime "9:25:52 PDT"]
[Termination "TheNextLevelFan won by resignation"]

1. Nc3 {[%clk 0:10:01.9]} 1... d5 {[%clk 0:09:56.7]} 2. e4 {[%clk 0:10:01.9]}
2... d4 {[%clk 0:09:57.2]} 3. Nce2 {[%clk 0:10:02.5]} 3... c5 {[%clk 0:09:55]}
4. Ng3 {[%clk 0:10:03.2]} 4... Nc6 {[%clk 0:09:53.3]} 5. Bc4 {[%clk 0:10:02.6]}
5... e5 {[%clk 0:09:43.6]} 6. Nf3 {[%clk 0:09:53]} 6... Be7 {[%clk 0:09:35.3]}
7. O-O {[%clk 0:09:52.4]} 7... Nf6 {[%clk 0:09:33.2]} 8. d3 {[%clk 0:09:52.8]}
8... O-O {[%clk 0:09:30.7]} 9. a3 {[%clk 0:09:53.9]} 9... Rb8 {[%clk 0:09:03.1]}
10. Ng5 {[%clk 0:09:28.6]} 10... b5 {[%clk 0:08:57.1]} 11. Ba2 {[%clk
0:09:28.9]} 11... h6 {[%clk 0:08:54.5]} 12. Nh3 {[%clk 0:09:26.3]} 12... Bxh3
{[%clk 0:07:47.4]} 13. gxh3 {[%clk 0:09:26.8]} 13... Nh7 {[%clk 0:07:49]} 14.
Nf5 {[%clk 0:08:58.3]} 14... Bg5 {[%clk 0:07:48.9]} 15. Qg4 {[%clk 0:08:52.5]}
15... Qf6 {[%clk 0:07:13.4]} 16. f4 {[%clk 0:08:04.1]} 16... exf4 {[%clk
0:07:11.9]} 17. Bxf4 {[%clk 0:08:04.8]} 17... Ne5 {[%clk 0:06:57.4]} 18. Qg3
{[%clk 0:07:55.2]} 18... Bxf4 {[%clk 0:06:51.6]} 19. Rxf4 {[%clk 0:07:55.7]}
19... Qg5 {[%clk 0:06:33.7]} 20. Raf1 {[%clk 0:07:36.8]} 20... Kh8 {[%clk
0:06:11.4]} 21. h4 {[%clk 0:07:26.7]} 21... Qxg3+ {[%clk 0:06:11.3]} 22. hxg3
{[%clk 0:07:27.8]} 22... h5 {[%clk 0:04:51.9]} 23. Ne7 {[%clk 0:07:00.8]} 23...
Rb7 {[%clk 0:03:56.8]} 24. Nd5 {[%clk 0:06:46.9]} 24... g6 {[%clk 0:03:44]} 25.
Kf2 {[%clk 0:06:07.7]} 25... Kg7 {[%clk 0:03:44.6]} 26. Ke2 {[%clk 0:06:07.5]}
26... Rc8 {[%clk 0:03:43.6]} 27. Kd2 {[%clk 0:05:19.1]} 27... c4 {[%clk
0:03:39.4]} 28. dxc4 {[%clk 0:03:27.9]} 28... bxc4 {[%clk 0:03:38.7]} 29. b3
{[%clk 0:03:28.3]} 29... c3+ {[%clk 0:03:03.8]} 30. Ke2 {[%clk 0:03:25.1]} 30...
Nf8 {[%clk 0:03:05.4]} 31. b4 {[%clk 0:02:59]} 31... Ne6 {[%clk 0:03:02.2]} 32.
R4f2 {[%clk 0:02:55.2]} 32... d3+ {[%clk 0:02:25.9]} 33. cxd3 {[%clk 0:02:54.2]}
33... Ng4 {[%clk 0:02:27.4]} 34. Rg2 {[%clk 0:02:33.2]} 34... Nd4+ {[%clk
0:02:15.1]} 35. Kd1 {[%clk 0:02:34]} 35... a5 {[%clk 0:02:11.4]} 36. Kc1 {[%clk
0:02:24.4]} 36... axb4 {[%clk 0:02:08]} 37. axb4 {[%clk 0:02:15.5]} 37... Ra7
{[%clk 0:01:41]} 38. Kb1 {[%clk 0:01:33.4]} 38... c2+ {[%clk 0:01:19.1]} 39. Kb2
{[%clk 0:01:33.9]} 39... Rxa2+ {[%clk 0:01:00.8]} 40. Kxa2 {[%clk 0:01:34.7]}
40... c1=Q {[%clk 0:01:01.8]} 41. Rxc1 {[%clk 0:01:36.2]} 41... Rxc1 {[%clk
0:01:03.1]} 42. Rb2 {[%clk 0:01:25.5]} 42... Nb5 {[%clk 0:01:01]} 43. Kb3 {[%clk
0:01:21.4]} 43... Nf6 {[%clk 0:00:35.2]} 44. Ka4 {[%clk 0:01:09.8]} 44... Nxd5
{[%clk 0:00:33.8]} 45. Kxb5 {[%clk 0:01:09.8]} 45... Nc7+ {[%clk 0:00:30.2]} 46.
Kb6 {[%clk 0:01:10.3]} 46... Kf6 {[%clk 0:00:29.7]} 47. d4 {[%clk 0:00:57]}
47... Ke7 {[%clk 0:00:26.7]} 48. b5 {[%clk 0:00:57.3]} 48... Kd6 {[%clk
0:00:23.7]} 49. Rf2 {[%clk 0:00:55.9]} 49... Ke7 {[%clk 0:00:14.9]} 50. Rb2
{[%clk 0:00:55.8]} 50... Kd6 {[%clk 0:00:14.7]} 51. Kb7 {[%clk 0:00:53.2]} 51...
Ne6 {[%clk 0:00:14.7]} 52. Rb4 {[%clk 0:00:44.9]} 52... Rd1 {[%clk 0:00:13.1]}
53. d5 {[%clk 0:00:43]} 53... Nc5+ {[%clk 0:00:14.2]} 54. Kb6 {[%clk 0:00:43.9]}
54... Nd7+ {[%clk 0:00:14.6]} 55. Kb7 {[%clk 0:00:44.8]} 55... Nc5+ {[%clk
0:00:14.8]} 56. Kb6 {[%clk 0:00:44.3]} 56... Re1 {[%clk 0:00:16]} 57. Rc4 {[%clk
0:00:42.4]} 57... Nxe4 {[%clk 0:00:17.1]} 58. Rc7 {[%clk 0:00:37.1]} 58... f5
{[%clk 0:00:14.5]} 59. Rg7 {[%clk 0:00:37.7]} 59... Kxd5 {[%clk 0:00:14.5]} 60.
Rxg6 {[%clk 0:00:39]} 60... Rg1 {[%clk 0:00:14.1]} 61. Kc7 {[%clk 0:00:38.5]}
61... Rc1+ {[%clk 0:00:13.1]} 62. Kb7 {[%clk 0:00:37.7]} 62... Rc3 {[%clk
0:00:13.3]} 63. b6 {[%clk 0:00:37.9]} 63... Nxg3 {[%clk 0:00:14.3]} 64. Ka7
{[%clk 0:00:37.7]} 64... f4 {[%clk 0:00:14.3]} 65. b7 {[%clk 0:00:38.6]} 65...
Ra3+ {[%clk 0:00:14.8]} 66. Kb6 {[%clk 0:00:39.4]} 66... Rb3+ {[%clk 0:00:15.7]}
67. Ka7 {[%clk 0:00:40.5]} 67... Rxb7+ {[%clk 0:00:15.4]} 68. Kxb7 {[%clk
0:00:41.3]} 68... Ke4 {[%clk 0:00:16.4]} 69. Kc6 {[%clk 0:00:40.8]} 69... Nf5
{[%clk 0:00:16.9]} 70. Re6+ {[%clk 0:00:38.8]} 70... Kd4 {[%clk 0:00:15.6]} 71.
Re1 {[%clk 0:00:36.2]} 71... f3 {[%clk 0:00:14.2]} 72. Kd7 {[%clk 0:00:34.3]}
72... f2 {[%clk 0:00:14.9]} 73. Rh1 {[%clk 0:00:35]} 73... Ng3 {[%clk
0:00:14.9]} 74. Rd1+ {[%clk 0:00:33.9]} 74... Ke3 {[%clk 0:00:15.7]} 75. Ke6
{[%clk 0:00:35]} 75... f1=Q {[%clk 0:00:15.5]} 76. Rxf1 {[%clk 0:00:36]} 76...
Nxf1 {[%clk 0:00:17.4]} 77. Kf5 {[%clk 0:00:37.4]} 77... Kf3 {[%clk 0:00:17.8]}
78. Kg5 {[%clk 0:00:38.1]} 78... Ng3 {[%clk 0:00:19.7]} 79. Kg6 {[%clk
0:00:39.3]} 79... Kg4 {[%clk 0:00:20.8]} 0-1